[Event "Prague Festival-Masters 2022"]
[Site "Prague"]
[Date "2022.06.16"]
[Round "8.1"]
[White "Le, Quang Liem"]
[Black "Vidit, Santosh Gujrathi"]
[Result "1/2-1/2"]
[ECO "D50"]
[WhiteElo "2709"]
[BlackElo "2723"]
[Annotator "TA"]
[PlyCount "161"]
[EventDate "2022.06.07"]
[EventType "tourn"]
[EventCountry "CZE"]
[SourceTitle "playchess.com"]
[Source "ChessBase"]
[SourceQuality "1"]
[TimeControl "40/5400+30:1800+30"]

{[%evp 14,161,20,27,26,26,16,23,13,6,10,6,8,6,12,5,14,10,14,7,8,5,13,5,21,14,16,0,0,0,2,0,6,4,9,0,20,16,16,8,14,22,51,52,62,62,64,56,56,56,59,59,59,59,70,70,70,70,80,55,66,52,61,29,43,29,29,29,29,29,29,29,29,29,29,29,29,29,37,37,37,37,36,37,58,61,60,59,59,38,38,38,38,30,30,30,30,38,38,28,28,28,28,28,55,28,28,28,34,35,35,35,38,38,42,43,43,43,67,67,70,77,83,83,83,83,83,83,83,75,83,75,83,75,83,83,83,83,83,83,83,55,55,10,10,12,12,12,12,10]} 1. d4 {[%emt 0:00:04]} Nf6 {[%emt 0:00:23]} 2. c4 {[%emt 0:00:09]} e6 {[%emt 0:00:07]} 3. Nf3 {[%emt 0:00:07]} d5 {[%emt 0:00:07]} 4. Nc3 {[%emt 0:00:09]} c5 {[%emt 0:00:12]} 5. cxd5 {[%emt 0:00:11]} cxd4 {[%emt 0:00:08]} 6. Qxd4 {[%emt 0:00:09]} exd5 {[%emt 0:00:06]} 7. Bg5 {[%emt 0:00:12]} Be7 {[%emt 0:00:11]} 8. e3 {[%emt 0:00:08]} O-O {[%emt 0:00:14] D50: Queen's Gambit Declined: Dutch-Peruvian Gambit.} 9. Rd1 {[%emt 0:00:20]} Be6 {[%emt 0:00:58]} 10. Bd3 {[%emt 0:00:20]} h6 {[%emt 0:00:56] White has an edge.} 11. Bh4 {[%emt 0:00:09]} Nc6 {[%emt 0:00:12][%cal Bb8c6,Bc6a5,Ba5c4][%mdl 32]} 12. Qa4 {[%emt 0:00:08]} Qb6 {[%emt 0:01:25]} 13. Rd2 {[%emt 0:00:11]} Rfd8 {[%emt 0:00:48]} 14. O-O {[%emt 0:00:12] [#]} Kf8 $146 {[%emt 0:00:40]} ({Predecessor:} 14... Rac8 15. h3 Kf8 16. Bb1 Na5 17. Qb5 Nc4 18. Qxb6 axb6 19. Re2 Nxb2 20. Rxb2 Rxc3 21. Rxb6 {1-0 (79) Praggnanandhaa,R (2642)-Ding,L (2806) chess24.com INT 2022}) 15. Bb1 {[%emt 0:09:09]} Na5 {[%emt 0:00:11]} 16. Qb5 {[%emt 0:01:48]} Nc4 {[%emt 0:03:33]} 17. Qxb6 {[%emt 0:00:09]} axb6 {[%emt 0:00:05]} 18. Re2 {[%emt 0:03:23]} g5 {[%emt 0:00:10]} 19. Bg3 {[%emt 0:00:07]} Bg4 {[%emt 0:00:06]} 20. h3 {[%emt 0:09:05]} Bxf3 {[%emt 0:01:25]} 21. gxf3 {[%emt 0:00:03]} d4 {[%emt 0:00:24]} 22. exd4 {[%emt 0:00:25]} Rxd4 {[%emt 0:00:21]} 23. Kg2 {[%emt 0:01:42]} Rad8 {[%emt 0:18:29]} 24. Rc1 $36 {[%emt 0:03:15][%mdl 2048] White has some pressure.} (24. Rfe1 {with more complications.} Bb4 25. a3 Bxc3 26. bxc3 Rd2 27. a4) 24... Rd2 {[%emt 0:03:24]} 25. b3 {[%emt 0:06:14]} Rxe2 {[%emt 0:19:01]} 26. Nxe2 {[%emt 0:00:03]} Na3 {[%emt 0:00:11]} 27. Bf5 {[%emt 0:00:47]} Nb5 {[%emt 0:14:17]} 28. Rc8 {[%emt 0:03:02]} Rxc8 {[%emt 0:04:35]} 29. Bxc8 {[%emt 0:00:10]} Nd6 {[%emt 0:00:03]} 30. Bxd6 {[%emt 0:00:14]} Bxd6 $14 {[%emt 0:00:02][%mdl 4096] Endgame KBN-KBN} 31. f4 {[%emt 0:00:21]} Nd5 {[%emt 0:02:09]} 32. fxg5 {[%emt 0:00:18]} ({But not} 32. Bxb7 Nxf4+ 33. Nxf4 Bxf4 $11) 32... hxg5 {[%emt 0:01:42]} 33. Kf3 {[%emt 0:03:45]} Nb4 {[%emt 0:06:39]} 34. a4 {[%emt 0:01:51]} Bc5 {[%emt 0:02:52]} 35. Bxb7 {[%emt 0:01:04]} Nc2 {[%emt 0:00:16]} 36. Kg2 {[%emt 0:09:45]} Ne1+ {[%emt 0:02:14]} 37. Kg3 {[%emt 0:02:01]} f5 {[%emt 0:01:52] Inhibits Be4.} 38. f3 {[%emt 0:08:37]} Ke7 {[%emt 0:03:17]} 39. h4 {[%emt 0:04:26]} gxh4+ {[%emt 0:03:14]} 40. Kxh4 {[%emt 0:00:00]} Kf6 {[%emt 0:00:00]} 41. f4 {[%emt 0:02:20]} Bb4 {[%emt 0:12:22]} 42. Kg3 {[%emt 0:02:11]} Nc2 {[%emt 0:05:37]} 43. Ba6 {[%emt 0:02:34]} Be1+ {[%emt 0:01:00]} 44. Kf3 {[%emt 0:00:26]} Bd2 {[%emt 0:00:22]} 45. Bc4 {[%emt 0:01:26]} Bb4 {[%emt 0:01:57]} 46. Ng3 {[%emt 0:03:58][%cal Og3f5]} Ne1+ {[%emt 0:03:05]} 47. Kf2 {[%emt 0:00:14]} Nc2 $1 {[%emt 0:00:05]} 48. Ke2 {[%emt 0:03:11]} Bd6 {[%emt 0:00:25]} 49. Kd3 {[%emt 0:00:27]} Nb4+ {[%emt 0:01:05]} 50. Kc3 {[%emt 0:00:49]} Na2+ {[%emt 0:02:01]} 51. Kb2 {[%emt 0:00:09]} Nb4 {[%emt 0:00:05]} 52. Ne2 {[%emt 0:00:29]} Nc6 {[%emt 0:00:58]} 53. Kc3 {[%emt 0:01:36]} Ne7 {[%emt 0:01:35]} 54. Kd4 {[%emt 0:02:16]} Bc5+ {[%emt 0:00:25]} 55. Kd3 {[%emt 0:00:08]} Ng6 {[%emt 0:00:53]} 56. Bd5 {[%emt 0:00:35]} Bd6 {[%emt 0:03:17]} 57. Ke3 {[%emt 0:00:17]} Bc5+ {[%emt 0:00:48]} 58. Kf3 {[%emt 0:00:14]} Bd6 {[%emt 0:00:36]} 59. Bc4 {[%emt 0:02:48]} Nh4+ {[%emt 0:00:38]} 60. Kf2 {[%emt 0:00:27]} Ng6 {[%emt 0:00:59]} 61. Ke3 {[%emt 0:00:21]} Bc5+ {[%emt 0:00:38]} 62. Kf3 {[%emt 0:00:09]} Bd6 {[%emt 0:00:08]} 63. Bb5 {[%emt 0:00:19]} Nh4+ {[%emt 0:01:07]} 64. Kf2 {[%emt 0:00:20]} Ng6 {[%emt 0:00:07]} 65. Ke3 {[%emt 0:00:07]} Ke7 {[%emt 0:00:19] Inhibits Be8.} 66. Bc6 {[%emt 0:04:03]} Bc5+ {[%emt 0:00:40]} 67. Kd3 {[%emt 0:00:21]} Bd6 {[%emt 0:00:12]} 68. Kc4 {[%emt 0:00:07]} Nxf4 {[%emt 0:02:10]} 69. Nd4 {[%emt 0:00:10]} Kd8 {[%emt 0:01:18]} 70. Nxf5 {[%emt 0:00:19]} Be5 {[%emt 0:00:39]} 71. b4 {[%emt 0:01:17]} Kc7 {[%emt 0:00:06]} 72. Be4 {[%emt 0:00:17]} Bf6 {[%emt 0:01:26]} 73. Bh1 {[%emt 0:03:48]} Ng6 {[%emt 0:01:06]} 74. Kb5 {[%emt 0:01:06]} Ne7 {[%emt 0:00:28]} 75. Ne3 {[%emt 0:00:27]} Bd4 {[%emt 0:00:27]} 76. Nc2 {[%emt 0:01:08]} Bf2 {[%emt 0:00:17]} 77. Ka6 {[%emt 0:00:39]} Nf5 {[%emt 0:01:04]} 78. b5 {[%emt 0:00:58]} Nd4 {[%emt 0:05:46] The position is equal.} 79. Nb4 {[%emt 0:00:55]} Ne6 {[%emt 0:00:42]} 80. Ka7 {[%emt 0:00:34]} Nc5 {[%emt 0:00:41]} 81. Na6+ {[%emt 0:42:47] Weighted Error Value: White=0.04 (flawless) /Black=0.03 (flawless)} 1/2-1/2

[Event "Prague Festival-Masters 2022"]
[Site "Prague"]
[Date "2022.06.16"]
[Round "8.2"]
[White "Navara, David"]
[Black "Shankland, Sam"]
[Result "1/2-1/2"]
[ECO "D41"]
[WhiteElo "2682"]
[BlackElo "2718"]
[Annotator "TA"]
[PlyCount "62"]
[EventDate "2022.06.07"]
[EventType "tourn"]
[EventCountry "CZE"]
[SourceTitle "playchess.com"]
[Source "ChessBase"]
[SourceQuality "1"]
[TimeControl "40/5400+30:1800+30"]

{[%evp 26,62,16,0,0,1,5,0,8,12,8,0,0,0,0,0,0,0,0,0,6,7,18,0,0,0,0,0,0,0,0,0,0,0,0,0,0,0,0]} 1. d4 {[%emt 0:00:30]} d5 {[%emt 0:00:14]} 2. c4 {[%emt 0:00:00]} e6 {[%emt 0:00:05]} 3. Nf3 {[%emt 0:00:57]} Nf6 {[%emt 0:00:07]} 4. Nc3 {[%emt 0:00:13]} c5 {[%emt 0:00:06]} 5. cxd5 {[%emt 0:00:27]} Nxd5 {[%emt 0:00:05]} 6. e4 {[%emt 0:01:03]} Nxc3 {[%emt 0:00:06]} 7. bxc3 {[%emt 0:00:05]} cxd4 {[%emt 0:00:04]} 8. cxd4 {[%emt 0:00:11]} Bb4+ {[%emt 0:00:05]} 9. Bd2 {[%emt 0:00:08]} Bxd2+ {[%emt 0:00:06]} 10. Qxd2 {[%emt 0:00:09]} O-O {[%emt 0:00:05]} 11. Bc4 {[%emt 0:11:24]} Nd7 {[%emt 0:00:16][%cal Bb8d7,Bd7f6,Bf6e4][%mdl 32]} 12. O-O {[%emt 0:00:08]} b6 {[%emt 0:00:05]} 13. Rad1 {[%emt 0:00:14]} Bb7 {[%emt 0:00:07]} 14. Rfe1 {[%emt 0:00:04] The position is equal.} Rc8 {[%emt 0:00:07] D41: Queen's Gambit Declined: Semi-Tarrasch with 5 cxd5.} 15. Bb3 {[%emt 0:00:04]} h6 {[%emt 0:00:10]} 16. h4 {[%emt 0:04:17]} Nf6 {[%emt 0:09:09]} 17. d5 {[%emt 0:15:11]} exd5 {[%emt 0:00:08] [#]} 18. e5 $146 {[%emt 0:01:17]} ({Predecessor:} 18. exd5 Re8 19. Rxe8+ Qxe8 20. Nd4 Rd8 21. Nf5 Qe5 22. Qd3 Qe4 23. Qxe4 Nxe4 24. Re1 {0-1 (47) Razin,V (2428)-Grigoriants,S (2546) Tornelo INT 2020}) 18... Ne4 {[%emt 0:01:04]} 19. Qf4 {[%emt 0:00:15] [#] And now Rxe4 would win.} Nc5 {[%emt 0:06:49]} 20. Nd4 {[%emt 0:00:31]} Ne6 {[%emt 0:01:22]} 21. Qg3 {[%emt 0:00:59]} Nxd4 {[%emt 0:04:16]} 22. Rxd4 {[%emt 0:00:39][%cal Bd1d4,Bd4g4,Bg4g3,Bg3f3][%mdl 32]} Qc7 {[%emt 0:00:56]} 23. Rg4 {[%emt 0:06:25]} f6 {[%emt 0:02:10]} 24. exf6 {[%emt 0:23:49][%cal Rg4g7]} (24. Rg6 {keeps more tension.} fxe5 25. Rxh6 e4 26. Rd6) 24... Qxg3 {[%emt 0:04:21]} 25. Rxg3 {[%emt 0:00:12]} Rxf6 {[%emt 0:00:14]} 26. Re7 {[%emt 0:00:05][%csl LRb7,LRg7]} Rf7 {[%emt 0:00:04]} 27. Rxb7 {[%emt 0:00:11][%mdl 64] [#] Remove Defender, Decoy} Rxb7 {[%emt 0:00:04]} 28. Bxd5+ {[%emt 0:00:07]} Rf7 $1 {[%emt 0:00:02]} 29. Rf3 {[%emt 0:00:14][%mdl 64] Pin} Rcc7 {[%emt 0:00:06]} 30. h5 {[%emt 0:00:48] aiming for Kf1.} Kf8 {[%emt 0:00:07]} 31. Bxf7 {[%emt 0:00:06]} Rxf7 {[%emt 0:00:05] An even fight not without its subleties.  Weighted Error Value: White=0.03 (flawless) /Black=0.01 (flawless)} 1/2-1/2

[Event "Prague Festival-Masters 2022"]
[Site "Prague"]
[Date "2022.06.16"]
[Round "8.3"]
[White "Salem, A.R. Saleh"]
[Black "Harikrishna, Pentala"]
[Result "0-1"]
[ECO "D11"]
[WhiteElo "2690"]
[BlackElo "2705"]
[Annotator "TA"]
[PlyCount "48"]
[EventDate "2022.06.07"]
[EventType "tourn"]
[EventCountry "CZE"]
[SourceTitle "playchess.com"]
[Source "ChessBase"]
[SourceQuality "1"]
[TimeControl "40/5400+30:1800+30"]

{[%evp 9,48,14,14,25,36,37,39,32,26,6,17,16,43,6,38,38,48,45,40,36,60,40,72,57,54,-150,-127,-246,-256,-247,-269,-275,-269,-381,-377,-364,-360,-368,-368,-365,-364]} 1. d4 {[%emt 0:00:03]} d5 {[%emt 0:00:06]} 2. c4 {[%emt 0:00:05]} c6 {[%emt 0:00:04]} 3. Nf3 {[%emt 0:00:04]} Nf6 {[%emt 0:00:05]} 4. g3 {[%emt 0:00:05]} Bf5 {[%emt 0:00:54]} 5. Nc3 {[%emt 0:01:01]} e6 {[%emt 0:00:13]} 6. Nh4 {[%emt 0:00:43] D11: Slav Defence: 3 Nf3 sidelines and 3...Nf6 4 e3 Bg4.} Be4 {[%emt 0:00:18]} 7. f3 {[%emt 0:00:14]} Bg6 {[%emt 0:00:06]} 8. Qb3 {[%emt 0:00:33] White is slightly better.} Qb6 {[%emt 0:01:25]} 9. c5 {[%emt 0:00:17] outshines the older 9.Nxg6.} Qxb3 {[%emt 0:02:47]} 10. axb3 {[%emt 0:00:05]} Na6 {[%emt 0:06:24]} 11. Bf4 {[%emt 0:00:14]} Nd7 {[%emt 0:02:34][%cal Oe6e5]} 12. e4 {[%emt 0:23:18]} Nb4 {[%emt 0:09:37] [#] Strongly threatening ...Nc2+.} 13. Ra4 {[%emt 0:03:31] [#]} ({Of course not} 13. Nxg6 hxg6 14. Ra4 a5 $11) 13... a5 $146 {[%emt 0:03:18][%cal Oe6e5]} ({Predecessor:} 13... Nc2+ 14. Kd1 Nxd4 15. Rxd4 e5 16. Nxg6 hxg6 17. Bxe5 Nxe5 18. exd5 O-O-O 19. d6 Nxf3 {0-1 (73) Samunenkov,I (2371)-Bryakin,M (2480) Novi Sad 2022}) 14. exd5 {[%emt 0:07:55]} exd5 {[%emt 0:01:07]} 15. Kd2 {[%emt 0:01:49]} ({Reject} 15. Nxg6 hxg6 16. Na2 Nxa2 17. Rxa2 Be7 $11) 15... Be7 {[%emt 0:19:05]} 16. Bh3 {[%emt 0:02:29] Threatens to win with Rha1.} b5 {[%emt 0:00:07]} 17. Re1 $2 {[%emt 0:14:44]} Nxc5 {[%emt 0:07:00]} 18. dxc5 {[%emt 0:09:26]} bxa4 $19 {[%emt 0:00:38]} 19. Nxa4 {[%emt 0:01:06] Black must now prevent Nb6.} Ra7 {[%emt 0:02:57]} 20. Nb6 {[%emt 0:01:25] aiming for Nc8.} Nd3 {[%emt 0:03:59]} 21. Rxe7+ {[%emt 0:11:26]} (21. Nxg6 $142 Nxe1 22. Nxh8 Nxf3+ 23. Kd1) 21... Rxe7 {[%emt 0:01:11] The board is on fire. Black is winning.} (21... Kxe7 22. Nxg6+ hxg6 23. Kxd3 $17) 22. Bd6 {[%emt 0:00:02] [#]} Nb4 $1 {[%emt 0:03:15]} 23. Ng2 {[%emt 0:00:08]} (23. Bxe7 Kxe7) 23... Kd8 {[%emt 0:02:11]} 24. Nf4 {[%emt 0:00:40]} Rhe8 {[%emt 0:00:18] Weighted Error Value: White=0.44/Black=0.08 (flawless)} 0-1

[Event "Prague Festival-Masters 2022"]
[Site "Prague"]
[Date "2022.06.16"]
[Round "8.4"]
[White "Anton Guijarro, David"]
[Black "Maghsoodloo, Parham"]
[Result "1/2-1/2"]
[ECO "E21"]
[WhiteElo "2691"]
[BlackElo "2699"]
[Annotator "TA"]
[PlyCount "37"]
[EventDate "2022.06.07"]
[EventType "tourn"]
[EventCountry "CZE"]
[SourceTitle "playchess.com"]
[Source "ChessBase"]
[SourceQuality "1"]
[TimeControl "40/5400+30:1800+30"]

{[%evp 10,37,0,-5,0,0,4,7,7,0,0,0,0,0,0,0,0,0,0,0,0,0,0,0,0,0,0,0,0,0]} 1. d4 {[%emt 0:00:06]} Nf6 {[%emt 0:00:52]} 2. c4 {[%emt 0:00:14]} e6 {[%emt 0:00:06]} 3. Nc3 {[%emt 0:00:22]} Bb4 {[%emt 0:00:18]} 4. e3 {[%emt 0:00:14]} O-O {[%emt 0:01:24]} 5. Bd2 {[%emt 0:00:21]} b6 {[%emt 0:09:03]} 6. Nf3 {[%emt 0:01:36] The position is equal.} c5 {[%emt 0:00:45] E21: Nimzo-Indian: 4 Nf3.} 7. Bd3 {[%emt 0:02:12]} cxd4 {[%emt 0:04:19]} 8. exd4 {[%emt 0:00:34]} Ba6 {[%emt 0:12:50]} 9. Bg5 {[%emt 0:24:23] [#]} d5 $146 {[%emt 0:06:15]} ({Predecessor:} 9... h6 10. Bxf6 Qxf6 11. O-O Bxc3 12. bxc3 Nc6 13. Re1 Rfe8 14. Qa4 Bb7 15. Rab1 Ne7 {0-1 (27) Gelet,S (2082)-Sambuev,B (2597) Trois Rivieres 2014}) 10. Ne5 {[%emt 0:08:58]} Nbd7 {[%emt 0:11:21]} 11. Nxd7 {[%emt 0:05:14]} Qxd7 {[%emt 0:04:34]} 12. Bxf6 {[%emt 0:00:13]} gxf6 {[%emt 0:00:07]} ({Much less strong is} 12... Bxc3+ 13. bxc3 gxf6 14. Qg4+ (14. Qh5 f5 $14) 14... Kh8 15. Qh4 $14) 13. Qg4+ {[%emt 0:14:49]} Kh8 {[%emt 0:00:02]} 14. Qh4 {[%emt 0:00:29][%csl Gd3,LRf6,LRh7][%cal Rh4h7] [#]} f5 {[%emt 0:00:04] Strongly threatening ...Be7.} 15. Qf6+ {[%emt 0:00:10]} Kg8 {[%emt 0:00:06]} 16. Qg5+ {[%emt 0:00:03]} Kh8 {[%emt 0:00:04] aiming for ...Be7.} 17. Qf6+ {[%emt 0:00:03]} Kg8 {[%emt 0:00:03]} 18. Qg5+ {[%emt 0:00:04]} Kh8 {[%emt 0:00:03] ...Be7 is the strong threat.} 19. Qf6+ {[%emt 0:00:05] A balanced but interesting game.  Weighted Error Value: White=0.01 (flawless) /Black=0.01 (flawless)} 1/2-1/2

[Event "Prague Festival-Masters 2022"]
[Site "Prague"]
[Date "2022.06.16"]
[Round "8.5"]
[White "Nguyen, Thai Dai Van"]
[Black "Vallejo Pons, Francisco"]
[Result "1/2-1/2"]
[ECO "D02"]
[WhiteElo "2612"]
[BlackElo "2704"]
[Annotator "TA"]
[PlyCount "61"]
[EventDate "2022.06.07"]
[EventType "tourn"]
[EventCountry "CZE"]
[SourceTitle "playchess.com"]
[Source "ChessBase"]
[SourceQuality "1"]
[TimeControl "40/5400+30:1800+30"]

{[%evp 11,61,19,27,20,32,32,31,22,9,6,20,19,1,0,0,-33,-28,-26,-28,-63,-47,-54,-54,-65,-55,-61,-47,-39,-48,-107,-89,-110,-29,-57,-55,-56,0,0,0,0,0,0,6,6,9,6,14,10,11,8,8,0]} 1. Nf3 {[%emt 0:00:05]} d5 {[%emt 0:00:10]} 2. g3 {[%emt 0:00:08]} Nd7 {[%emt 0:02:18]} 3. d4 {[%emt 0:00:27]} e6 {[%emt 0:01:59]} 4. Bg2 {[%emt 0:08:09]} Ngf6 {[%emt 0:02:06]} 5. O-O {[%emt 0:09:20]} b5 {[%emt 0:00:57]} 6. a4 {[%emt 0:00:47]} b4 {[%emt 0:00:03]} 7. c4 {[%emt 0:00:17] D02: 1 d4 d5 2 Nf3 sidelines, including 2...Nf6 3 g3 and 2...Nf6 3 Bf4.} bxc3 {[%emt 0:01:35]} 8. Nxc3 {[%emt 0:00:06] 8.Nxc3 is better than 8.bxc3.} a5 $5 {[%emt 0:02:04][%mdl 4] Exploring less charted territory.} 9. Bf4 {[%emt 0:06:42] [#] And now Nb5 would win. White is slightly better.} c6 {[%emt 0:01:09] [#] Inhibits Nb5.} 10. e4 $146 {[%emt 0:06:03]} ({Predecessor:} 10. Qc2 Ba6 11. Rfd1 Be7 12. e4 O-O 13. exd5 Nxd5 14. Ne5 Nxe5 15. Bxe5 Qd7 16. Ne4 {½-½ (41) Malakhov,V (2654)-Prusikin,M (2510) Germany 2018}) 10... Ba6 {[%emt 0:13:14]} 11. Re1 {[%emt 0:01:23]} Bb4 {[%emt 0:00:45]} 12. e5 {[%emt 0:04:43]} Ng8 {[%emt 0:01:50]} 13. h4 {[%emt 0:00:39]} Ne7 {[%emt 0:03:11]} 14. h5 {[%emt 0:00:10]} h6 {[%emt 0:00:26]} 15. g4 {[%emt 0:07:46]} c5 {[%emt 0:12:32]} 16. Bf1 {[%emt 0:03:28]} cxd4 {[%emt 0:05:36]} (16... g6 {seems wilder.} 17. Bxa6 Rxa6 18. Qe2 Rc6) 17. Nxd4 {[%emt 0:00:27]} Bxf1 {[%emt 0:00:30]} 18. Rxf1 {[%emt 0:01:14]} Bxc3 {[%emt 0:08:34]} 19. bxc3 {[%emt 0:00:05]} Rc8 {[%emt 0:00:32]} 20. Qe2 {[%emt 0:09:44]} ({White should try} 20. Nb5 $15) 20... Rc4 $17 {[%emt 0:01:59]} ({Of course not} 20... Rxc3 $6 21. Nb5 d4 22. Nd6+ (22. Nxc3 dxc3 23. Bc1 O-O $11) 22... Kf8 23. Rad1 $14) 21. Rfd1 {[%emt 0:12:52]} Nc5 {[%emt 0:05:34]} ({Better is} 21... Nc6 $17 22. Rac1 Nxd4 23. Rxd4 Nb6) 22. Be3 $1 $11 {[%emt 0:01:52]} O-O $1 {[%emt 0:14:17][%cal Bh8f8,Bf8d8,Bd8d2][%mdl 32]} (22... Rxc3 $2 23. Nb5 Ne4 24. f3 $18 (24. Nxc3 Nxc3 25. Qa6 Nxd1 $11)) 23. Nb5 $1 {[%emt 0:00:36] [#] aiming for Qxc4.} Ne4 {[%emt 0:02:59]} (23... Nd7 $15) 24. Qxc4 $1 {[%emt 0:03:54] The position is equal.} dxc4 {[%emt 0:00:02]} 25. Rxd8 {[%emt 0:00:07]} Rxd8 {[%emt 0:00:03]} 26. Bb6 {[%emt 0:04:29]} Rd2 {[%emt 0:00:57] Strongly threatening ...Nd5.} 27. Nd6 {[%emt 0:01:07]} Nxd6 {[%emt 0:10:32]} 28. exd6 {[%emt 0:00:40]} Nc6 {[%emt 0:02:51]} 29. Bc7 {[%emt 0:02:44]} Kf8 $1 {[%emt 0:00:33]} 30. Rb1 {[%emt 0:00:05] Threatens to win with Rb6.} Ke8 $1 {[%emt 0:00:09]} 31. Rb6 {[%emt 0:00:13] Weighted Error Value: White=0.07 (flawless) /Black=0.08 (flawless)} 1/2-1/2

[Event "Prague Festival-Masters 2022"]
[Site "Prague"]
[Date "2022.06.17"]
[Round "9.1"]
[White "Harikrishna, Pentala"]
[Black "Anton Guijarro, David"]
[Result "1-0"]
[ECO "A29"]
[WhiteElo "2705"]
[BlackElo "2691"]
[Annotator "TA"]
[PlyCount "101"]
[EventDate "2022.06.07"]
[EventType "tourn"]
[EventCountry "CZE"]
[SourceTitle "playchess.com"]
[Source "ChessBase"]
[SourceQuality "1"]
[TimeControl "40/5400+30:1800+30"]

{[%evp 14,101,15,2,10,-4,-3,-3,-6,0,0,-2,0,0,0,0,0,0,0,0,0,-2,0,-13,-15,-11,7,0,0,-2,-5,-7,23,23,19,18,21,10,18,12,0,-64,-57,-170,-164,-171,0,0,0,12,48,17,92,95,102,87,106,108,92,36,354,354,354,354,354,354,524,496,482,473,640,640,640,640,640,640,640,640,633,633,633,625,619,381,629,606,643,611,5065,5065]} 1. c4 {[%emt 0:00:05]} Nf6 {[%emt 0:00:54]} 2. Nc3 {[%emt 0:00:06]} e5 {[%emt 0:00:26]} 3. Nf3 {[%emt 0:00:07]} Nc6 {[%emt 0:00:08]} 4. g3 {[%emt 0:00:06]} Bb4 {[%emt 0:00:38]} 5. Nd5 {[%emt 0:00:50]} Bc5 {[%emt 0:00:39]} 6. Bg2 {[%emt 0:02:43]} d6 {[%emt 0:01:02]} 7. O-O {[%emt 0:02:20]} O-O {[%emt 0:01:00]} 8. e3 {[%emt 0:01:28]} Bb6 {[%emt 0:05:40] A29: English Opening: Four Knights Variation with 4 g3.} 9. d4 {[%emt 0:08:35]} Bg4 {[%emt 0:02:26] White must now prevent ...e4.} 10. h3 {[%emt 0:08:08]} Bxf3 {[%emt 0:00:51] The position is equal.} 11. Bxf3 {[%emt 0:05:19]} exd4 {[%emt 0:00:40]} 12. Nxb6 {[%emt 0:06:08]} axb6 {[%emt 0:00:25]} 13. exd4 {[%emt 0:04:49]} d5 {[%emt 0:03:30]} 14. c5 {[%emt 0:01:18]} bxc5 {[%emt 0:03:45]} 15. dxc5 {[%emt 0:00:06] [#]} h6 $146 {[%emt 0:04:35]} ({Predecessor:} 15... Qe7 16. Bf4 Rfe8 17. a3 Qxc5 18. Bxc7 Nd4 19. Rc1 Nxf3+ 20. Qxf3 Qb5 21. b4 Qa6 {½-½ (33) Edouard,R (2611)-Guliyev,N (2538) Chartres 2021}) 16. b3 {[%emt 0:05:13]} Re8 {[%emt 0:10:23]} 17. Bb2 {[%emt 0:02:41]} Ne4 {[%emt 0:00:20]} 18. Re1 {[%emt 0:05:28]} Qg5 {[%emt 0:05:22]} 19. a3 {[%emt 0:07:05]} Rad8 {[%emt 0:08:40]} 20. b4 {[%emt 0:01:46]} Ne5 $40 {[%emt 0:12:41][%mdl 128] Black mounts an attack.} 21. Bxe5 {[%emt 0:04:08]} Qxe5 {[%emt 0:03:26]} 22. Bg2 {[%emt 0:03:15]} f5 {[%emt 0:00:18]} 23. f3 {[%emt 0:04:25]} Qxg3 {[%emt 0:01:09] Strongly threatening ...Nc3.} 24. fxe4 {[%emt 0:00:08]} dxe4 {[%emt 0:00:16]} 25. Qc2 {[%emt 0:03:32]} Rd3 {[%emt 0:17:01]} 26. Qf2 {[%emt 0:23:41]} Qg5 {[%emt 0:17:15]} 27. h4 {[%emt 0:04:41]} (27. Rf1 $11 Re5 28. Qf4 Qxf4 29. Rxf4) 27... Qg4 $15 {[%emt 0:01:10]} 28. Re3 {[%emt 0:01:11]} (28. Kf1 $15) 28... Rxe3 $1 $19 {[%emt 0:01:22]} 29. Qxe3 {[%emt 0:00:08]} Qxh4 $2 {[%emt 0:03:37]} ({Black should play} 29... f4 $19 30. Qh3 Qg6) 30. Rf1 $11 {[%emt 0:03:27]} Re5 {[%emt 0:02:48]} 31. a4 {[%emt 0:02:13]} c6 {[%emt 0:00:43]} 32. b5 $1 {[%emt 0:02:31]} Qe7 {[%emt 0:01:02]} (32... cxb5 $11 33. axb5 Qf6) 33. bxc6 $16 {[%emt 0:03:33] White is more active.} bxc6 {[%emt 0:00:27]} 34. Bh3 {[%emt 0:08:17]} g6 {[%emt 0:01:49]} 35. Qxh6 {[%emt 0:00:19]} Kf7 {[%emt 0:03:29]} 36. Rb1 {[%emt 0:03:03]} (36. Rc1 $1 $16) 36... e3 $2 {[%emt 0:02:04][%mdl 8192]} (36... Qxc5+ $14 37. Kh1 Qf8) 37. Qh7+ $18 {[%emt 0:04:43]} Kf6 {[%emt 0:00:17]} 38. Qh4+ {[%emt 0:00:37]} Kf7 {[%emt 0:00:50]} 39. Qxe7+ {[%emt 0:00:34]} Kxe7 {[%emt 0:01:35][%mdl 4096] Endgame [#] KRB-KR} (39... Rxe7 $142 40. Bg2 Ke6 41. Bxc6 Rc7) 40. a5 $1 {[%emt 0:00:00][%cal Ba4a5,Ba5a6][%mdl 32] Threatens to win with a6.} Rxc5 {[%emt 0:00:00]} 41. Ra1 {[%emt 0:00:32] And now a6 would win.} Re5 {[%emt 0:22:39]} 42. a6 {[%emt 0:09:07] a7 would kill now.} e2 {[%emt 0:00:09]} 43. Kf2 {[%emt 0:00:09]} Kd6 {[%emt 0:00:21] [#]} 44. Ke1 $1 {[%emt 0:00:39] White threatens a7 and mate.} Re8 {[%emt 0:00:34]} 45. Bg2 {[%emt 0:00:10] aiming for a7.} ({Not} 45. a7 Ra8 $14) 45... Ra8 {[%emt 0:01:07]} 46. Bf3 {[%emt 0:00:35]} ({Less strong is} 46. a7 Kc5 $14) 46... Kc7 {[%emt 0:02:36]} 47. Bxe2 {[%emt 0:23:50]} g5 {[%emt 0:01:08]} 48. Kf2 {[%emt 0:02:53]} Kb6 $2 {[%emt 0:01:53]} (48... Rd8 49. Kg3 Kb8 50. Rb1+ Ka8) 49. Bd3 {[%emt 0:03:44] White is clearly winning.} f4 {[%emt 0:00:14]} 50. Kf3 {[%emt 0:18:32]} Ka7 {[%emt 0:02:33]} 51. Rb1 {[%emt 0:02:36] What a bad dream for Black.  Weighted Error Value: White=0.08 (flawless) /Black=0.40} 1-0